[Event "24th Hoogeschool Zeeland 2022"]
[Site "Vlissingen"]
[Date "2022.08.06"]
[Round "1.7"]
[White "Hendrikse, Ad"]
[Black "Schoppen, Casper"]
[Result "0-1"]
[ECO "B59"]
[WhiteElo "1893"]
[BlackElo "2507"]
[Annotator "TA"]
[PlyCount "82"]
[EventDate "2022.08.05"]
[EventType "swiss"]
[EventCountry "NED"]
[SourceTitle "playchess.com"]
[Source "ChessBase"]
[SourceQuality "1"]
[TimeControl "40/5400+30:1800+30"]

{[%evp 21,82,-10,-22,-85,-63,-74,-73,-61,-73,-99,-97,-102,-95,-102,-106,-95,-100,-101,-80,-98,-99,-93,-95,-86,-85,-156,-144,-141,-152,-175,-173,-188,-171,-269,-269,-266,-270,-280,-283,-325,-282,-287,-279,-332,-292,-291,-284,-291,-283,-279,-277,-297,-283,-420,-410,-370,-383,-6208,-6208,-6207,-5306,-5289,-2323]} 1. e4 {[%emt 0:00:30]} c5 {[%emt 0:00:24]} 2. Nf3 {[%emt 0:00:00]} Nc6 {[%emt 0:00:30]} 3. d4 {[%emt 0:00:00]} cxd4 {[%emt 0:00:06]} 4. Nxd4 {[%emt 0:00:07]} Nf6 {[%emt 0:00:08]} 5. Nc3 {[%emt 0:00:24]} d6 {[%emt 0:01:01]} 6. Be2 {[%emt 0:00:27]} e5 {[%emt 0:00:37]} 7. Nb3 {[%emt 0:00:36]} Be7 {[%emt 0:00:59]} 8. Be3 {[%emt 0:04:19]} Be6 {[%emt 0:02:23]} 9. O-O {[%emt 0:04:09]} O-O {[%emt 0:00:33]} 10. f3 {[%emt 0:03:03]} a5 {[%emt 0:10:19]} 11. a4 {[%emt 0:12:46]} Nb4 {[%emt 0:02:23]} 12. Rc1 {[%emt 0:14:47] B59: Classical Sicilian: 6 Be2 e5 7 Nb3.} (12. Bf2 $11 {remains equal.}) 12... Rc8 {[%emt 0:07:06] [#]} 13. f4 $146 {[%emt 0:17:36] [#]} ({Predecessor:} 13. Bb5 d5 14. exd5 Nbxd5 15. Nxd5 Nxd5 16. Bf2 Qc7 17. Qe2 Nb4 18. Nd2 Na2 19. Rcd1 Qxc2 {0-1 (37) Hinev,D-Manetta,J Bad Berleburg 1975}) 13... Rxc3 $1 {[%emt 0:10:00]} 14. bxc3 {[%emt 0:00:41] Black is better.} Na2 {[%emt 0:00:18]} 15. Qd3 {[%emt 0:12:39] Ra1 is the strong threat.} Nxc1 {[%emt 0:02:12]} 16. Rxc1 {[%emt 0:07:52]} Qc7 {[%emt 0:03:15]} 17. f5 {[%emt 0:01:47]} Bd7 {[%emt 0:00:17]} 18. Ra1 {[%emt 0:00:17]} Bc6 {[%emt 0:02:34]} 19. Bf3 {[%emt 0:00:32]} g6 {[%emt 0:05:15]} 20. fxg6 {[%emt 0:01:54]} hxg6 {[%emt 0:00:33]} 21. Nd2 {[%emt 0:00:35]} Rc8 {[%emt 0:04:30]} 22. c4 {[%emt 0:02:56]} Bd7 {[%emt 0:03:05]} 23. Rb1 {[%emt 0:02:26]} (23. h3 $142) 23... Bxa4 $17 {[%emt 0:01:24][%cal Ob7b5]} 24. Bb6 {[%emt 0:00:40]} Qc6 {[%emt 0:00:58]} 25. Kh1 {[%emt 0:00:24]} Bd8 {[%emt 0:07:01]} 26. Bxd8 {[%emt 0:04:04]} Rxd8 {[%emt 0:00:30]} 27. c3 {[%emt 0:00:19]} (27. Ra1 {was called for.}) 27... Qc7 $19 {[%emt 0:01:27]} 28. Qe3 {[%emt 0:02:14]} Bc6 {[%emt 0:00:40]} 29. g3 {[%emt 0:00:24]} a4 {[%emt 0:00:53][%cal Ba5a4,Ba4a3][%mdl 32]} 30. h3 {[%emt 0:01:10]} Qe7 {[%emt 0:01:30]} 31. Rf1 {[%emt 0:01:20]} Ra8 {[%emt 0:00:49]} 32. Bg2 {[%emt 0:00:44]} a3 {[%emt 0:01:06] Strongly threatening ...a2.} 33. Ra1 {[%emt 0:03:13]} Nd7 {[%emt 0:01:29][%cal Bf6d7,Bd7c5,Bc5d3][%mdl 32]} ({Don't blunder} 33... a2 $2 34. Qb6 $19) 34. Ra2 {[%emt 0:00:38]} Qe6 {[%emt 0:01:02]} 35. Kh2 {[%emt 0:00:44]} Nc5 {[%emt 0:01:10]} 36. Bf1 {[%emt 0:00:31]} Ra4 {[%emt 0:04:18]} 37. Bd3 {[%emt 0:00:51]} (37. Qe1 {is a better defense.}) 37... Nxd3 {[%emt 0:00:58]} 38. Qxd3 {[%emt 0:00:01]} b5 {[%emt 0:00:23][%cal Rb5c4]} 39. cxb5 $2 {[%emt 0:01:41]} (39. Qf3) 39... Qxa2 {[%emt 0:00:32] Black is clearly winning.} 40. bxc6 {[%emt 0:00:01]} Ra8 {[%emt 0:01:04] ( -> ...Qb2)} 41. Qxd6 {[%emt 0:31:02]} Qe6 {[%emt 0:30:22] Weighted Error Value: White=0.50/Black=0.04 (flawless)} (41... Qc2 $142 42. c7 a2 43. Qd8+ {[#]} Rxd8 $3 {[%mdl 512]} 44. cxd8=Q+ Kg7) 0-1

[Event "24th Hoogeschool Zeeland 2022"]
[Site "Vlissingen"]
[Date "2022.08.06"]
[Round "1.8"]
[White "Ikonnikov, Vyacheslav"]
[Black "Boghossian, Wahe"]
[Result "1-0"]
[ECO "E91"]
[WhiteElo "2493"]
[BlackElo "1978"]
[Annotator "TA"]
[PlyCount "61"]
[EventDate "2022.08.05"]
[EventType "swiss"]
[EventCountry "NED"]
[SourceTitle "playchess.com"]
[Source "ChessBase"]
[SourceQuality "1"]
[TimeControl "40/5400+30:1800+30"]

{[%evp 14,61,68,43,58,24,37,42,52,52,56,56,61,62,76,52,63,68,72,56,66,66,93,90,246,221,229,212,365,361,369,362,347,265,423,347,397,294,672,641,1008,973,978,958,1072,1067,1525,1128,29998,29999]} 1. d4 {[%emt 0:00:07]} Nf6 {[%emt 0:00:05]} 2. Nf3 {[%emt 0:00:17]} g6 {[%emt 0:00:12]} 3. c4 {[%emt 0:00:15]} Bg7 {[%emt 0:00:07]} 4. Nc3 {[%emt 0:00:09]} O-O {[%emt 0:01:18]} 5. e4 {[%emt 0:00:11]} d6 {[%emt 0:00:04]} 6. Be2 {[%emt 0:00:15]} Nc6 {[%emt 0:01:58]} 7. d5 {[%emt 0:01:00]} Nb8 {[%emt 0:01:55]} 8. O-O {[%emt 0:00:51] White is more active.} e6 {[%emt 0:04:00] E91: King's Indian: Classical: 6 Be2, unusual replies including 6...c5 and 6...Bg4.} 9. dxe6 {[%emt 0:01:58]} Bxe6 {[%emt 0:02:10]} 10. Nd4 {[%emt 0:00:19] [#]} Qd7 $146 {[%emt 0:27:45] White is slightly better.} ({Predecessor:} 10... Bd7 11. Be3 Re8 12. f3 Nc6 13. Qd2 Nh5 14. Rfd1 Nf4 15. Bxf4 Nxd4 16. Bf1 Ne6 17. Be3 a5 18. c5 dxc5 19. Qxd7 Bd4 20. Qb5 Bxe3+ 21. Kh1 {0-1 (32) Rozum,I (2473)-Fedoseev,V (2356) St Petersburg 2010}) 11. Be3 {[%emt 0:06:58]} Nc6 {[%emt 0:03:54]} 12. Nxe6 {[%emt 0:01:32]} Qxe6 {[%emt 0:01:00]} 13. f3 {[%emt 0:00:21]} Ne5 {[%emt 0:13:07]} 14. b3 {[%emt 0:04:03]} c6 {[%emt 0:03:40]} 15. Qd2 {[%emt 1:19:44]} Rfd8 {[%emt 0:01:00]} 16. Rad1 {[%emt 0:00:35]} Ne8 {[%emt 0:06:00]} 17. Rfe1 {[%emt 0:06:35]} h5 {[%emt 0:30:45]} 18. h3 {[%emt 0:00:59]} f5 $2 {[%emt 0:03:20] A mistake that costs the game.} (18... Nd7 $16 {might work better.}) 19. exf5 $18 {[%emt 0:07:55]} Qxf5 {[%emt 0:00:07]} 20. f4 {[%emt 0:00:48]} Nf7 {[%emt 0:01:25]} (20... Nd7 21. Bd3 Qf7) 21. Bd3 {[%emt 0:00:22]} Qf6 {[%emt 0:01:09]} 22. Ne4 {[%emt 0:02:26][%cal Bc3e4,Be4g5,Bg5f3][%mdl 32]} Qb2 {[%emt 0:01:42]} 23. Ng5 {[%emt 0:04:32]} Qf6 {[%emt 0:08:01]} (23... Nxg5 $142 24. fxg5 Qxd2 25. Bxd2 (25. Rxd2 Bc3 $16) 25... Bd4+ 26. Kh1 Ng7 27. Bxg6 Rf8) 24. Qc2 {[%emt 0:04:12]} Nh8 {[%emt 0:00:15]} 25. Nf3 {[%emt 0:02:50]} Bh6 $2 {[%emt 0:01:50]} (25... Nc7 26. f5 Re8 27. fxg6 Qb2) 26. Bd4 {[%emt 0:01:45]} Qxf4 {[%emt 0:00:30]} 27. Bxg6 {[%emt 0:00:41] [#] Hoping for Bh7+. A strong pair of Bishops.} Nf6 {[%emt 0:03:01] Against Bh7+} 28. Re7 {[%emt 0:04:04]} Bg7 {[%emt 0:01:55]} 29. Rde1 {[%emt 0:05:23][%cal Og6h7] Threatens to win with Bh7+!} d5 {[%emt 0:01:43]} 30. R1e6 {[%emt 0:02:58][%cal Og6h7] Bh7+! is the strong threat.} Rf8 {[%emt 0:01:07] [#]} 31. Bh7+ $1 {[%emt 0:00:52][%mdl 512] Weighted Error Value: White=0.19 (very precise) /Black=1.00} 1-0

[Event "24th Hoogeschool Zeeland 2022"]
[Site "Vlissingen"]
[Date "2022.08.06"]
[Round "1.9"]
[White "Pluymert, Marcel"]
[Black "Santiago, Yago De Moura"]
[Result "0-1"]
[ECO "D00"]
[WhiteElo "1889"]
[BlackElo "2513"]
[Annotator "TA"]
[PlyCount "74"]
[EventDate "2022.08.05"]
[EventType "swiss"]
[EventCountry "NED"]
[SourceTitle "playchess.com"]
[Source "ChessBase"]
[SourceQuality "1"]
[TimeControl "40/5400+30:1800+30"]

{[%evp 11,74,-8,-17,-14,-10,-14,0,-18,15,18,14,-26,-24,-37,-15,-66,-57,-84,-75,-101,-69,-79,-78,-75,-67,-59,-73,-60,-67,-65,-62,-74,-66,-97,-86,-81,-79,-83,-66,-129,-125,-139,-139,-125,-132,-132,-125,-125,-125,-125,-125,-132,-125,-132,-132,-132,-125,-118,-100,-81,-96,-194,-216,-260,-275]} 1. d4 {[%emt 0:00:04]} Nf6 {[%emt 0:00:27]} 2. e3 {[%emt 0:01:35]} g6 {[%emt 0:00:39]} 3. Bd3 {[%emt 0:01:25]} Bg7 {[%emt 0:00:28]} 4. f4 {[%emt 0:00:47]} d5 {[%emt 0:01:07]} 5. Nf3 {[%emt 0:01:46]} O-O {[%emt 0:00:19]} 6. Nbd2 {[%emt 0:01:32]} c5 {[%emt 0:03:11]} 7. c3 {[%emt 0:02:28] D00: 1 d4 d5: Unusual lines.} Qc7 {[%emt 0:00:33]} 8. Ne5 {[%emt 0:01:03]} Nc6 {[%emt 0:00:20]} 9. O-O {[%emt 0:00:23] The position is equal.} Rb8 {[%emt 0:00:30]} 10. Qe2 {[%emt 0:02:45]} Bf5 {[%emt 0:17:43] [#]} 11. Ndf3 $146 {[%emt 0:05:25]} ({Predecessor:} 11. Bxf5 gxf5 12. Kh1 e6 13. a4 a6 14. Ndf3 cxd4 15. exd4 Ne4 16. Be3 b5 17. axb5 axb5 {0-1 (55) Bianco Diaz,R (1891)-Danielsson,R (2098) Opatija 2013}) 11... Bxd3 {[%emt 0:00:51]} 12. Qxd3 {[%emt 0:00:15]} b5 {[%emt 0:08:51]} 13. a3 {[%emt 0:01:44]} (13. dxc5 $11 Nxe5 14. fxe5) 13... a5 {[%emt 0:02:15][%cal Ba7a5,Ba5b4,Bb4b3][%mdl 32]} 14. Bd2 {[%emt 0:06:27]} Ne4 {[%emt 0:03:05]} 15. Rac1 {[%emt 0:05:46]} Rfd8 {[%emt 0:02:51]} 16. Ng4 {[%emt 0:04:50]} c4 {[%emt 0:01:46]} 17. Qc2 {[%emt 0:04:02]} b4 {[%emt 0:05:57]} 18. axb4 {[%emt 0:03:56]} axb4 {[%emt 0:00:25]} 19. Nf2 {[%emt 0:00:23]} b3 {[%emt 0:03:18]} 20. Qd1 {[%emt 0:02:07]} Nxf2 {[%emt 0:00:24] 0x0.001e3c912e4ddp-1022s more active pieces.} 21. Rxf2 {[%emt 0:00:16]} Ra8 $36 {[%emt 0:00:14][%mdl 2048] Black has good play.} 22. Ra1 {[%emt 0:00:29]} Rxa1 {[%emt 0:05:41]} 23. Qxa1 {[%emt 0:02:40]} Qb7 {[%emt 0:00:10]} 24. Qe1 {[%emt 0:00:47]} Na7 {[%emt 0:03:39]} (24... f5 {with more complications.} 25. Ng5 Qd7 26. Rf1 Bf6) 25. g4 {[%emt 0:04:20]} (25. Re2 $1 $15) 25... Nb5 $17 {[%emt 0:00:24]} 26. Bc1 {[%emt 0:02:08]} Nd6 {[%emt 0:00:16]} 27. Nd2 {[%emt 0:00:49]} Ra8 {[%emt 0:01:01]} 28. Rf1 {[%emt 0:01:17]} Qd7 {[%emt 0:02:13]} 29. Qe2 {[%emt 0:43:31]} Qe6 {[%emt 0:04:19]} 30. Qf3 {[%emt 0:00:00]} f5 {[%emt 0:00:18]} 31. h3 {[%emt 0:00:00]} Ra1 {[%emt 0:11:20]} 32. Kg2 {[%emt 0:00:00]} Kf7 {[%emt 0:02:08]} 33. g5 {[%emt 0:00:00]} Nc8 {[%emt 0:01:59][%cal Bd6c8,Bc8b6,Bb6a4][%mdl 32]} 34. h4 {[%emt 0:00:00]} Nb6 {[%emt 0:00:10]} 35. h5 {[%emt 0:00:00]} Na4 {[%emt 0:00:23] White must now prevent ...Ra2.} 36. h6 {[%emt 0:00:00]} (36. Kg3 $17) 36... Bf8 $19 {[%emt 0:08:59]} 37. Kh2 {[%emt 0:00:00]} Ra2 {[%emt 0:00:26] Weighted Error Value: White=0.15 (very precise) /Black=0.06 (flawless)} 0-1

[Event "24th Hoogeschool Zeeland 2022"]
[Site "Vlissingen"]
[Date "2022.08.06"]
[Round "1.10"]
[White "Vrolijk, Liam"]
[Black "Albrecht, Alex"]
[Result "1-0"]
[ECO "A84"]
[WhiteElo "2464"]
[BlackElo "1884"]
[Annotator "TA"]
[PlyCount "49"]
[EventDate "2022.08.05"]
[EventType "swiss"]
[EventCountry "NED"]
[SourceTitle "playchess.com"]
[Source "ChessBase"]
[SourceQuality "1"]
[TimeControl "40/5400+30:1800+30"]

{[%evp 16,49,46,14,31,22,92,96,94,92,87,94,134,143,158,142,153,155,159,158,151,151,151,151,217,215,212,217,254,249,245,260,260,235,29994,29995]} 1. Nf3 {[%emt 0:00:06]} d5 {[%emt 0:00:10]} 2. e3 {[%emt 0:00:10]} e6 {[%emt 0:00:36]} 3. c4 {[%emt 0:00:09]} c6 {[%emt 0:01:31]} 4. d4 {[%emt 0:01:18]} f5 {[%emt 0:00:05]} 5. Bd3 {[%emt 0:01:25]} Nf6 {[%emt 0:00:06]} 6. O-O {[%emt 0:00:08]} Bd6 {[%emt 0:00:03]} 7. b3 {[%emt 0:00:07]} Qe7 {[%emt 0:01:02]} 8. Bb2 {[%emt 0:03:26]} O-O {[%emt 0:00:17]} 9. Qc1 {[%emt 0:00:06]} Ne4 {[%emt 0:11:46] has lost popularity (9...b6). A84: Dutch Defence: 2 c4 Miscellaneous.} 10. Ba3 {[%emt 0:01:26]} c5 {[%emt 0:04:28]} (10... Nd7 $11) 11. cxd5 $16 {[%emt 0:02:55]} exd5 {[%emt 0:01:02] White is better.} 12. Nc3 {[%emt 0:07:55] [#]} Nxc3 $146 {[%emt 0:02:29]} ({Predecessor:} 12... Be6 13. Nb5 b6 14. Nxd6 Qxd6 15. Bxe4 fxe4 16. dxc5 Qd8 17. Nd4 Bc8 18. cxb6 axb6 19. Bxf8 Qxf8 20. Qc7 Nd7 21. Qc6 Ra5 22. b4 Ne5 23. Qc7 {1-0 (23) Schneider,I (2486)-Eilenberg,J (2137) Playchess.com INT 2020}) 13. Qxc3 {[%emt 0:01:24][%cal Rd4c5]} b6 {[%emt 0:08:15]} 14. dxc5 {[%emt 0:06:08]} bxc5 {[%emt 0:00:37]} 15. Rac1 {[%emt 0:02:45][%cal Ra3c5]} Nd7 {[%emt 0:01:45]} 16. Bb5 {[%emt 0:06:07]} Bb7 {[%emt 0:08:12] Prevents Bc6.} 17. Bxd7 {[%emt 0:01:15]} Qxd7 {[%emt 0:00:01]} 18. Bxc5 {[%emt 0:00:13]} Rfc8 {[%emt 0:00:03]} 19. Qd4 {[%emt 0:01:25] White is more active.} Bxc5 {[%emt 0:04:24]} (19... Bc7 $16 20. Qd2 Qf7) 20. Rxc5 $18 {[%emt 0:00:09]} Rxc5 {[%emt 0:00:22]} 21. Qxc5 {[%emt 0:00:08]} Rc8 {[%emt 0:00:25]} 22. Qxa7 {[%emt 0:02:22]} Ra8 {[%emt 0:00:14]} 23. Qd4 {[%emt 0:00:39] Threatens to win with Ra1.} Rxa2 {[%emt 0:00:15]} 24. Rc1 {[%emt 0:00:23]} Qb5 $2 {[%emt 0:03:25] [#]} (24... Qd6 $18 25. h3 Ra3) 25. Rc7 {[%emt 0:01:48] Black got outplayed after the opening.  Weighted Error Value: White=0.07 (flawless) /Black=0.81} 1-0

[Event "24th Hoogeschool Zeeland 2022"]
[Site "Vlissingen"]
[Date "2022.08.06"]
[Round "1.11"]
[White "Sai Kiran Y"]
[Black "Leenhouts, Koen"]
[Result "1-0"]
[ECO "A45"]
[WhiteElo "1887"]
[BlackElo "2442"]
[Annotator "TA"]
[PlyCount "123"]
[EventDate "2022.08.05"]
[EventType "swiss"]
[EventCountry "NED"]
[SourceTitle "playchess.com"]
[Source "ChessBase"]
[SourceQuality "1"]
[TimeControl "40/5400+30:1800+30"]

{[%evp 9,123,-5,29,10,13,7,22,-32,-28,-34,-33,-27,-23,-15,0,-13,-7,-15,-16,-16,0,0,64,38,59,0,-6,-25,8,0,0,0,244,215,177,66,72,58,59,59,67,60,68,45,44,0,6,0,0,-17,-1,-17,0,0,6,6,11,0,-8,-29,-22,-123,-4,-3,0,-33,0,0,0,0,0,0,0,0,0,0,0,0,87,87,95,95,405,405,432,427,576,541,709,695,4552,5022,12839,12840,12841,12841,12841,12841,12841,12842,12844,12844,12845,12845,12846,12846,12847,12847,12847,12847,29999,12850,12850,27999,27999,27999]} 1. d4 {[%emt 0:00:02]} Nf6 {[%emt 0:00:46]} 2. Bf4 {[%emt 0:00:30]} g6 {[%emt 0:00:20]} 3. Nc3 {[%emt 0:00:00]} d5 {[%emt 0:00:27]} 4. e3 {[%emt 0:00:07]} Bg7 {[%emt 0:00:28]} 5. h4 {[%emt 0:00:02]} h6 {[%emt 0:02:16]} 6. Nf3 {[%emt 0:02:23] A45: Trompowsky Attack.} c6 {[%emt 0:02:04]} 7. Ne5 {[%emt 0:00:24]} Nfd7 {[%emt 0:03:58] [#]} 8. Bd3 $146 {[%emt 0:00:33]} (8. Nd3 $11) ({Predecessor:} 8. h5 g5 9. Bg3 Nxe5 10. Bxe5 f6 11. Bg3 e5 12. f4 O-O 13. fxe5 fxe5 14. Bxe5 Bxe5 15. dxe5 {0-1 (44) Guichard,P (2407)-Amin,B (2699) chess24.com INT 2019}) 8... Nxe5 $15 {[%emt 0:03:30]} 9. Bxe5 {[%emt 0:00:07]} Bxe5 {[%emt 0:03:41]} 10. dxe5 {[%emt 0:00:03]} Qc7 {[%emt 0:02:11]} 11. f4 {[%emt 0:00:54]} Qb6 {[%emt 0:01:02][%csl LRb2,LRe3]} 12. Qd2 {[%emt 0:01:48]} Bg4 {[%emt 0:02:48]} 13. Be2 {[%emt 0:09:35]} Bxe2 {[%emt 0:03:20]} (13... Qxb2 $2 14. Rb1 Qa3 15. Bxg4 $18) 14. Nxe2 {[%emt 0:00:04]} Qxb2 {[%emt 0:06:40]} 15. O-O $1 {[%emt 0:00:07]} Qb6 {[%emt 0:00:29]} ({Better is} 15... Nd7 $11) 16. Rab1 {[%emt 0:05:31]} Qc7 {[%emt 0:00:38]} 17. e6 {[%emt 0:01:43] Against Nd7} ({White should try} 17. c4 $14) 17... fxe6 $11 {[%emt 0:07:02]} 18. Nd4 {[%emt 0:03:54]} (18. c4 $5) 18... Nd7 {[%emt 0:04:07]} 19. Nxe6 {[%emt 0:05:03]} Qd6 {[%emt 0:00:19]} 20. f5 $36 {[%emt 0:05:45][%mdl 2048] White fights for an advantage.} Nb6 $2 {[%emt 0:04:31]} ({Don't take} 20... gxf5 21. Ng7+ Kd8 22. Nxf5 $16 (22. Rxb7 e6 $11)) (20... b6 $11 {and Black is okay.}) 21. Qd4 $18 {[%emt 0:07:17]} Rg8 {[%emt 0:13:51] [#]} 22. f6 {[%emt 0:08:51]} Qxe6 $14 {[%emt 0:01:08]} 23. f7+ {[%emt 0:00:03]} Kd7 {[%emt 0:03:04]} 24. fxg8=Q {[%emt 0:02:12]} Rxg8 {[%emt 0:00:05]} 25. a4 {[%emt 0:00:49][%cal Ba2a4,Ba4a5,Ba5a6][%mdl 32]} Kc7 {[%emt 0:12:40]} 26. a5 {[%emt 0:11:20] White is more active.} Nc8 {[%emt 0:00:15]} 27. Qf4+ {[%emt 0:07:14]} Nd6 {[%emt 0:00:44]} 28. Qxh6 {[%emt 0:00:39]} Qe4 {[%emt 0:04:56]} 29. a6 {[%emt 0:06:46]} b5 {[%emt 0:01:04]} 30. Qf4 {[%emt 0:03:26]} Rh8 {[%emt 0:02:30]} 31. Rb4 {[%emt 0:03:42]} Qxf4 {[%emt 0:02:34]} 32. Rbxf4 $11 {[%emt 0:02:37][%mdl 4096] Endgame KRR-KRN} Kb6 {[%emt 0:00:49]} 33. Rg4 {[%emt 0:00:49]} (33. g3 $5 {[%cal Rf4f8]}) 33... Kxa6 {[%emt 0:00:30]} 34. Rxg6 {[%emt 0:00:41][%cal Oe3e4]} Rxh4 {[%emt 0:00:08]} 35. Rf4 {[%emt 0:00:57]} (35. Rg8 $1 $11) 35... Rh7 {[%emt 0:00:30]} (35... Rh8 $17 {aiming for ...Kb6.} 36. Rg7 Kb6 37. Rxe7 a5) 36. g4 {[%emt 0:00:29]} Kb6 {[%emt 0:03:20]} 37. g5 {[%emt 0:00:25]} (37. Rg8 $5 {[%cal Rg4g5]}) 37... Rh3 {[%emt 0:03:52]} 38. Rg8 {[%emt 0:02:01]} Rxe3 {[%emt 0:01:40]} 39. g6 {[%emt 0:00:07]} Rg3+ {[%emt 0:00:34]} 40. Kh2 {[%emt 0:00:07]} Rg5 {[%emt 0:00:14]} 41. g7 {[%emt 0:34:22] Threatens to win with Rb8+.} Kc5 {[%emt 0:32:43] Strongly threatening ...e6.} 42. Kh3 {[%emt 0:01:15]} Ne4 {[%emt 0:01:31] And now ...Rg6 would win.} 43. Rf7 $1 {[%emt 0:01:38]} Rh5+ {[%emt 0:00:00]} (43... Nd6 $1 $11 {keeps the balance.} 44. Rxe7 Nf5 45. Rxa7 Rg3+ 46. Kh2 Rg6) 44. Kg2 {[%emt 0:00:00]} Rg5+ {[%emt 0:00:00]} 45. Kf3 {[%emt 0:00:00]} Rg3+ $2 {[%emt 0:00:00][%mdl 8192] Loses the game.} (45... Nd6 $16 {is more resistant.} 46. Rxe7 Nf5 47. Rxa7 Nd4+ 48. Kf2 (48. Kf4 Ne6+ 49. Ke3 b4 $16) 48... Ne6) 46. Kf4 $18 {[%emt 0:00:00]} Rg1 {[%emt 0:00:00] ...Rf1+ is the strong threat.} 47. Rxe7 {[%emt 0:00:00]} Rf1+ {[%emt 0:00:00]} 48. Ke5 {[%emt 0:00:00]} Ng3 {[%emt 0:00:00]} 49. Rh8 {[%emt 0:00:00]} Rf5+ {[%emt 0:00:00]} 50. Ke6 {[%emt 0:00:00]} Rg5 {[%emt 0:00:00]} 51. g8=Q {[%emt 0:00:00]} Rxg8 {[%emt 0:00:00]} 52. Rxg8 {[%emt 0:00:00]} Ne2 {[%emt 0:00:00]} 53. Ke5 {[%emt 0:00:00]} a5 {[%emt 0:00:08]} 54. Rc7 {[%emt 0:00:00]} b4 {[%emt 0:00:18]} 55. Ra8 {[%emt 0:00:00]} Kb5 {[%emt 0:02:14]} 56. Rb7+ {[%emt 0:00:00]} Kc4 {[%emt 0:00:11]} 57. Rxa5 {[%emt 0:00:25]} Nd4 {[%emt 0:00:05]} 58. Rc7 {[%emt 0:01:03]} Nf3+ {[%emt 0:00:10]} 59. Kd6 {[%emt 0:00:44]} Nd4 {[%emt 0:00:03]} 60. Rxc6+ {[%emt 0:01:22]} (60. Rc5# $142) 60... Nxc6 {[%emt 0:00:07]} 61. Kxc6 {[%emt 0:00:02]} Kc3 {[%emt 0:00:33]} 62. Rc5+ {[%emt 0:00:10] Weighted Error Value: White=0.16 (very precise) /Black=0.41} 1-0

[Event "24th Hoogeschool Zeeland 2022"]
[Site "Vlissingen"]
[Date "2022.08.06"]
[Round "1.12"]
[White "Dhulipalla Bala Chandra Prasad"]
[Black "Van Dijkhuizen, Robbert"]
[Result "1-0"]
[ECO "D02"]
[WhiteElo "2423"]
[BlackElo "1869"]
[Annotator "TA"]
[PlyCount "55"]
[EventDate "2022.08.05"]
[EventType "swiss"]
[EventCountry "NED"]
[SourceTitle "playchess.com"]
[Source "ChessBase"]
[SourceQuality "1"]
[TimeControl "40/5400+30:1800+30"]

{[%evp 9,55,7,10,9,18,22,18,19,21,23,29,31,47,45,47,47,47,47,49,42,60,59,58,57,62,57,63,47,83,62,79,77,81,77,77,85,76,78,77,80,126,126,280,300,525,537,523,374]} 1. d4 {[%emt 0:00:08]} Nf6 {[%emt 0:00:32]} 2. Nf3 {[%emt 0:00:13]} e6 {[%emt 0:00:17]} 3. Bf4 {[%emt 0:00:06]} d5 {[%emt 0:00:33]} 4. e3 {[%emt 0:00:12]} Bd6 {[%emt 0:00:54]} 5. Nbd2 {[%emt 0:00:06]} O-O {[%emt 0:01:16]} 6. Bd3 {[%emt 0:00:06] D02: 1 d4 d5 2 Nf3 sidelines, including 2...Nf6 3 g3 and 2...Nf6 3 Bf4.} c5 {[%emt 0:02:31]} 7. dxc5 {[%emt 0:00:06]} Bxf4 {[%emt 0:02:39]} 8. exf4 {[%emt 0:00:05] The position is equal.} Qc7 {[%emt 0:01:12][%csl LRc5,LRf4]} 9. g3 {[%emt 0:00:06]} Qxc5 {[%emt 0:00:55]} 10. O-O {[%emt 0:00:08][%cal Bh1f1,Bf1e1,Be1e3][%mdl 32]} Nc6 {[%emt 0:01:08]} 11. c3 {[%emt 0:00:21]} b6 {[%emt 0:04:32]} 12. Re1 {[%emt 0:01:21]} Bb7 {[%emt 0:04:55]} 13. Nb3 {[%emt 0:13:05]} Qd6 {[%emt 0:03:46] [#]} 14. Ne5 $146 {[%emt 0:02:58]} ({Predecessor:} 14. Nbd4 Nxd4 15. Nxd4 Rac8 16. Qe2 Ne4 17. Rad1 Rfd8 18. f3 Nc5 19. Bb1 a5 20. h4 {0-1 (39) Tang,A (2512)-Murzin,V (2513) Chess.com INT 2021}) 14... Rfd8 {[%emt 0:17:51]} 15. Nxc6 {[%emt 0:04:27]} Bxc6 {[%emt 0:01:08]} 16. Nd4 {[%emt 0:00:09]} Bb7 {[%emt 0:03:13]} 17. Re3 {[%emt 0:00:38] White is more active.} Ne4 {[%emt 0:11:49]} 18. Qe2 {[%emt 0:03:44]} Qc7 {[%emt 0:11:09]} 19. h4 {[%emt 0:09:57]} a6 {[%emt 0:09:59]} 20. Re1 {[%emt 0:02:24]} Re8 {[%emt 0:02:42]} 21. Kh2 {[%emt 0:07:04]} ({Don't play} 21. Bxe4 $6 dxe4 22. Qg4 Qd8 $11) 21... Rad8 {[%emt 0:04:29]} 22. f3 {[%emt 0:09:54]} Nc5 {[%emt 0:01:56]} 23. Bb1 {[%emt 0:00:09]} Nd7 {[%emt 0:02:01]} 24. Kg2 {[%emt 0:07:17]} Qc4 {[%emt 0:02:44] [#]} (24... b5 $142) 25. Qc2 $1 $16 {[%emt 0:03:00]} g6 $2 {[%emt 0:01:07]} (25... Nf8 $16) 26. h5 $18 {[%emt 0:03:00]} Qc7 $2 {[%emt 0:01:11]} (26... Qc8 27. hxg6 hxg6 28. Nxe6 d4) 27. hxg6 {[%emt 0:03:15]} hxg6 {[%emt 0:00:14] [#]} 28. Rxe6 $1 {[%emt 0:05:01][%mdl 512] Weighted Error Value: White=0.02 (flawless) /Black=0.26 (precise)} 1-0